bitfinex/quotes_BTCUSD_20250418
["timestamp","ask_amount","ask_price","bid_price","bid_amount"]
[1744938980313,0.01177052,84958.0,84956.0,0.00596865]
[1744938981076,4.492e-05,84961.0,84960.0,0.34]
[1744938981324,4.492e-05,84961.0,84960.0,0.34598071]
[1744938982212,4.492e-05,84961.0,84960.0,0.17076413]
[1744938982411,4.492e-05,84961.0,84960.0,0.18168626]
[1744938982597,4.492e-05,84961.0,84960.0,0.18903143]
[1744938982936,4.492e-05,84961.0,84960.0,0.02424801]
[1744938983728,4.492e-05,84961.0,84960.0,0.03305284]
[1744938986366,4.492e-05,84961.0,84960.0,0.02213071]
[1744938991702,4.492e-05,84961.0,84960.0,0.02313071]
[1744938994261,4.492e-05,84961.0,84960.0,0.52791413]
[1744938994905,4.492e-05,84961.0,84960.0,0.01432588]
[1744938994906,0.32784704,84961.0,84960.0,0.01432588]
[1744938995241,0.44729495,84961.0,84960.0,0.00834517]
[1744938995968,0.44729495,84961.0,84960.0,0.001]
[1744938996612,0.44829495,84961.0,84960.0,0.001]
[1744939003023,0.44829495,84961.0,84960.0,0.01328874]
[1744939011254,0.2471935,84954.0,84951.0,0.34]
[1744939011455,0.00176147,84953.0,84952.0,0.0049807]
[1744939013274,0.2471935,84954.0,84952.0,0.0049807]
[1744939014136,0.00176147,84953.0,84951.0,0.0009807]
[1744939014372,0.00176147,84953.0,84951.0,0.01327986]
[1744939015543,0.23718843,84953.0,84951.0,0.01327986]
[1744939019398,0.23718843,84953.0,84951.0,0.01950668]
[1744939023455,0.35663634,84953.0,84951.0,0.01950668]
[1744939023662,0.35587487,84953.0,84951.0,0.01950668]
[1744939023886,0.0484,84952.0,84951.0,0.01950668]
[1744939024812,0.05016147,84952.0,84951.0,0.01950668]
[1744939026351,0.16960938,84952.0,84951.0,0.01950668]
[1744939027642,0.21570938,84952.0,84951.0,0.00720752]
[1744939032121,0.23549359,84928.0,84927.0,0.01838232]
[1744939032392,0.35670297,84928.0,84927.0,0.01838232]
[1744939032607,0.3549415,84928.0,84927.0,0.01838232]
[1744939033586,0.3549415,84928.0,84927.0,0.01851714]
[1744939038543,0.011778,84904.0,84901.0,0.34]
[1744939038728,0.011778,84904.0,84901.0,0.34013492]
[1744939038852,0.011778,84904.0,84902.0,0.00441237]
[1744939039056,0.01177773,84906.0,84902.0,0.02848948]
[1744939039304,0.01177786,84905.0,84902.0,0.00441237]
[1744939039504,0.01177717,84910.0,84902.0,0.02488648]
[1744939039717,0.24731518,84912.0,84905.0,0.17666763]
[1744939039883,0.01177703,84911.0,84907.0,0.01177759]
[1744939040255,0.01177634,84916.0,84912.0,0.01177689]
[1744939040458,0.01177592,84919.0,84916.0,0.34]
[1744939040573,0.23728457,84918.0,84916.0,0.34]
[1744939040781,0.23728457,84918.0,84917.0,0.00443633]
[1744939041750,0.23553242,84914.0,84913.0,0.046]
[1744939041957,0.23553242,84914.0,84913.0,0.05044235]
[1744939045344,0.23553242,84914.0,84913.0,0.00444235]
[1744939045672,0.01177689,84912.0,84909.0,0.34]
[1744939045843,0.23554074,84911.0,84909.0,0.34]
[1744939046043,0.01177689,84912.0,84909.0,0.34]
[1744939047813,0.23553242,84914.0,84909.0,0.35177731]
[1744939047970,0.24730904,84914.0,84910.0,0.01177717]
[1744939048588,0.01177662,84914.0,84910.0,0.17665622]
[1744939048786,0.01177662,84914.0,84911.0,0.01177703]
[1744939049472,0.01177675,84913.0,84910.0,0.01177717]
[1744939049671,0.01177675,84913.0,84909.0,0.35177731]
[1744939050173,0.01177675,84913.0,84910.0,0.00453312]
[1744939050557,0.01177689,84912.0,84910.0,0.00453312]
[1744939053340,0.24731512,84912.0,84910.0,0.00453312]
[1744939053946,0.24732662,84908.0,84904.0,0.351778]
[1744939054745,0.24732662,84908.0,84904.0,0.13298341]
[1744939054949,0.24732662,84908.0,84904.0,0.011778]
[1744939056217,0.01177786,84905.0,84902.0,0.02123209]
[1744939056479,0.011778,84904.0,84900.0,0.34929803]
[1744939056681,0.01177786,84905.0,84901.0,0.01291334]
[1744939056880,0.01177786,84905.0,84901.0,0.35291334]
[1744939057226,0.23556571,84902.0,84901.0,0.00982035]
[1744939057434,0.23556571,84902.0,84901.0,0.00113492]
[1744939058232,0.24733816,84904.0,84901.0,0.00113492]
[1744939059294,0.24733816,84904.0,84901.0,0.01328244]
[1744939060321,0.24733816,84904.0,84901.0,0.02226341]
[1744939060909,0.23556571,84902.0,84901.0,0.02226341]
[1744939065213,0.23556571,84902.0,84901.0,0.02684998]
[1744939065600,0.24733816,84904.0,84901.0,0.02684998]
[1744939066146,0.23556571,84902.0,84901.0,0.02684998]
[1744939066739,0.24733816,84904.0,84901.0,0.02684998]
[1744939067136,0.23556571,84902.0,84901.0,0.02684998]
[1744939067721,0.24733816,84904.0,84901.0,0.02684998]
[1744939071302,0.24733816,84904.0,84901.0,0.02584998]
[1744939072531,0.01177675,84913.0,84908.0,0.01177745]
[1744939072736,0.01177662,84914.0,84908.0,0.01177745]
[1744939072873,0.23549923,84926.0,84920.0,0.01177578]
[1744939073073,0.01177537,84923.0,84918.0,0.01177606]
[1744939073277,0.01353698,84922.0,84918.0,0.17664052]
[1744939073475,0.01353698,84922.0,84919.0,0.01177592]
[1744939073679,0.00176147,84922.0,84919.0,0.01640073]
[1744939074023,0.01177509,84925.0,84922.0,0.01177551]
[1744939074228,0.01177509,84925.0,84920.0,0.16486104]
[1744939074229,0.23726616,84924.0,84920.0,0.01177578]
[1744939074402,0.23726616,84924.0,84923.0,0.00463085]
[1744939074609,0.23726616,84924.0,84921.0,0.01177565]
[1744939074813,0.0135367,84924.0,84920.0,0.01177578]
[1744939075010,0.0135367,84924.0,84922.0,0.00462783]
[1744939075225,0.0135367,84924.0,84920.0,0.01177578]
[1744939075424,0.0135367,84924.0,84923.0,0.00462783]
[1744939075586,0.0135367,84924.0,84921.0,0.01177565]
[1744939075782,0.01177523,84924.0,84922.0,0.00462783]
[1744939076041,0.01177523,84924.0,84921.0,0.01177565]
[1744939076249,0.00176147,84923.0,84921.0,0.01177565]
[1744939076456,0.00176147,84923.0,84922.0,0.00462482]
[1744939076790,0.24727445,84926.0,84922.0,0.17663267]
[1744939076791,0.01177495,84926.0,84922.0,0.17663267]
[1744939076908,0.01177495,84926.0,84923.0,0.00463387]
[1744939079407,0.23550191,84925.0,84923.0,0.00463387]
[1744939079535,0.24903847,84925.0,84921.0,0.01177565]
[1744939079731,0.247277,84925.0,84922.0,0.00463085]
[1744939080013,0.01177578,84920.0,84917.0,0.34]
[1744939080463,0.23552132,84918.0,84917.0,0.34]
[1744939080698,0.28062132,84918.0,84917.0,0.34]
[1744939082280,0.01177662,84914.0,84911.0,0.01177703]
[1744939083356,0.01177675,84913.0,84910.0,0.01177717]
[1744939086288,0.00677675,84913.0,84910.0,0.01177717]
[1744939086776,0.01177689,84912.0,84909.0,0.34]
[1744939087005,0.23554193,84911.0,84909.0,0.34]
[1744939088365,0.01177759,84907.0,84904.0,0.351778]
[1744939088585,0.01177717,84910.0,84905.0,0.01177786]
[1744939088586,0.01177731,84909.0,84905.0,0.01177786]
[1744939090114,0.01177731,84909.0,84906.0,0.01177773]
[1744939090330,0.00176147,84909.0,84907.0,0.34]
[1744939090523,0.01177703,84911.0,84907.0,0.35177759]
[1744939090955,0.01177675,84913.0,84910.0,0.01177717]
[1744939092055,0.01177648,84915.0,84911.0,0.01177703]
[1744939092364,0.01353795,84915.0,84911.0,0.35177703]
[1744939093401,0.0117762,84917.0,84913.0,0.34]
[1744939093602,0.0117762,84917.0,84913.0,0.35177675]
[1744939093837,0.01353767,84917.0,84913.0,0.35177675]
[1744939094268,0.01177634,84916.0,84913.0,0.35177675]
[1744939095523,0.01177634,84916.0,84913.0,0.01177675]
[1744939096975,0.24730333,84916.0,84913.0,0.01177675]
[1744939097174,0.01177648,84915.0,84912.0,0.01177689]
[1744939097494,0.0117762,84917.0,84914.0,0.01177662]
[1744939097964,0.00176147,84916.0,84913.0,0.35177675]
[1744939098144,0.24730047,84917.0,84913.0,0.35177675]
[1744939098669,0.01353781,84916.0,84912.0,0.01177689]
[1744939099815,0.01177662,84914.0,84910.0,0.01177717]
[1744939100016,0.01177675,84913.0,84910.0,0.01177717]
[1744939100241,0.01177675,84913.0,84910.0,0.35177717]
[1744939103526,0.01177662,84914.0,84911.0,0.01177703]
[1744939104237,0.01177662,84914.0,84910.0,0.35177717]
[1744939104456,0.24731226,84913.0,84910.0,0.01177717]
[1744939105366,0.01177773,84906.0,84901.0,0.37304183]
[1744939105609,0.01177773,84906.0,84903.0,0.01177814]
[1744939105834,0.2355639,84903.0,84901.0,0.36126341]
[1744939106576,0.23732537,84903.0,84901.0,0.01228244]
[1744939106807,0.0472,84902.0,84901.0,0.01228244]
[1744939107238,0.04896147,84902.0,84901.0,0.01228244]
[1744939107464,0.21460938,84902.0,84901.0,0.01228244]
[1744939108149,0.21460938,84902.0,84901.0,0.00013492]
[1744939109303,0.21460938,84902.0,84901.0,0.01580457]
[1744939113626,0.09516147,84902.0,84901.0,0.01580457]
[1744939113856,0.23556293,84903.0,84901.0,0.01580457]
[1744939114336,0.011778,84904.0,84901.0,0.01580457]
[1744939116322,0.011778,84904.0,84901.0,0.02758299]
[1744939117631,0.29351991,84911.0,84901.0,0.02758299]
[1744939117632,0.0475,84914.0,84911.0,0.01177703]
[1744939117844,0.01177662,84914.0,84908.0,0.01177745]
[1744939118059,0.01177648,84915.0,84910.0,0.35177717]
[1744939118486,0.05927578,84920.0,84915.0,0.17664715]
[1744939118697,0.01177592,84919.0,84916.0,0.01177634]
[1744939119386,0.01177592,84919.0,84910.0,0.34]
[1744939119387,0.01177592,84919.0,84911.0,0.16487851]
[1744939119596,0.01177551,84922.0,84918.0,0.34]
[1744939119739,0.01177565,84921.0,84918.0,0.34]
[1744939120154,0.23551855,84919.0,84918.0,0.34]
[1744939120807,0.01177592,84919.0,84916.0,0.01177634]
[1744939121041,0.01353753,84918.0,84915.0,0.01177648]
[1744939122047,0.01353753,84918.0,84914.0,0.15234022]
[1744939122531,0.01353753,84918.0,84915.0,0.01177648]
[1744939124553,0.01353753,84918.0,84914.0,0.36073819]
[1744939127478,0.23552964,84915.0,84914.0,0.00896157]
[1744939127680,0.01177662,84914.0,84911.0,0.01177703]
[1744939127828,0.00176147,84914.0,84912.0,0.34]
[1744939128034,0.00176147,84915.0,84913.0,0.01177675]
[1744939132700,0.01353795,84915.0,84912.0,0.34865641]
[1744939133257,0.01353795,84915.0,84912.0,0.3604333]
[1744939133459,0.00176147,84915.0,84914.0,0.34]
[1744939133611,0.00176147,84916.0,84914.0,0.34]
[1744939133932,0.00176147,84916.0,84915.0,0.50487075]
[1744939134129,0.01177592,84919.0,84916.0,0.35177634]
[1744939134635,0.01177592,84919.0,84916.0,0.34]
[1744939135036,0.24729472,84919.0,84916.0,0.34]
[1744939135259,0.24729472,84919.0,84915.0,0.01177648]
[1744939135712,0.23552964,84915.0,84914.0,0.34]
[1744939135900,0.28142964,84915.0,84914.0,0.34]
[1744939136105,0.23554351,84910.0,84906.0,0.34]
[1744939136242,0.23555159,84908.0,84906.0,0.34]
[1744939136442,0.24732904,84908.0,84903.0,0.01177814]
[1744939136637,0.01177759,84907.0,84903.0,0.02079086]
[1744939136912,0.24733263,84906.0,84903.0,0.02079086]
[1744939138886,0.01177759,84907.0,84904.0,0.351778]
[1744939139060,0.06137675,84913.0,84908.0,0.01177745]
[1744939139293,0.01177689,84912.0,84909.0,0.01177731]
[1744939139479,0.24731543,84912.0,84908.0,0.01177745]
[1744939141843,0.01177634,84916.0,84910.0,0.01177717]
[1744939142065,0.01177648,84915.0,84912.0,0.01177689]
[1744939142674,0.01177648,84915.0,84910.0,0.17665577]
[1744939142878,0.01177662,84914.0,84910.0,0.17665577]
[1744939143935,0.01177662,84914.0,84911.0,0.01177703]
[1744939144477,0.01177648,84915.0,84911.0,0.01177703]
[1744939144682,0.01177648,84915.0,84911.0,0.17665387]
[1744939145670,0.01177648,84915.0,84912.0,0.01177689]
[1744939148730,0.2473068,84915.0,84912.0,0.01177689]
[1744939149054,0.01177662,84914.0,84911.0,0.01177703]
[1744939150074,0.01177662,84914.0,84901.0,0.35580457]
[1744939150075,0.01177773,84906.0,84901.0,0.35580457]
[1744939150303,0.23556571,84902.0,84901.0,0.35580457]
[1744939151586,0.0469,84903.0,84901.0,0.35580457]
[1744939153384,0.0469,84903.0,84901.0,0.01580457]
[1744939153950,0.011778,84904.0,84901.0,0.01580457]
[1744939158007,0.23556293,84903.0,84901.0,0.01580457]
[1744939158381,0.2373244,84903.0,84901.0,0.01580457]
[1744939159785,0.35677231,84903.0,84901.0,0.01580457]
[1744939160106,0.0469,84902.0,84901.0,0.01580457]
[1744939160336,0.04866147,84902.0,84901.0,0.01580457]
[1744939162096,0.23556848,84901.0,84899.0,0.01769]
[1744939162272,0.16660938,84900.0,84899.0,0.01769]
[1744939162826,0.21350938,84900.0,84899.0,0.01769]
[1744939168419,0.34790938,84900.0,84899.0,0.01769]
[1744939168626,0.34614791,84900.0,84899.0,0.01769]
[1744939169021,0.21174791,84900.0,84899.0,0.01269]
[1744939169221,0.21350938,84900.0,84899.0,0.01269]
[1744939169648,0.11944791,84900.0,84899.0,0.01269]
[1744939170031,0.12120938,84900.0,84899.0,0.01269]
[1744939170628,0.11944791,84900.0,84899.0,0.01269]
[1744939173891,0.23556848,84901.0,84899.0,0.01269]
[1744939174234,0.01191292,84902.0,84899.0,0.01269]
[1744939174413,0.00013464,84902.0,84899.0,0.0244687]
[1744939174758,0.24747967,84902.0,84899.0,0.35269]
[1744939176631,0.24747967,84902.0,84899.0,0.10522234]
[1744939177046,0.01191292,84902.0,84898.0,0.01177884]
[1744939178818,0.01191292,84902.0,84898.0,0.35177884]
[1744939180683,0.2473469,84901.0,84896.0,0.35177911]
[1744939180910,0.23557382,84900.0,84896.0,0.35177911]
[1744939181078,0.23557382,84900.0,84896.0,0.36050369]
[1744939182548,0.0117787,84899.0,84896.0,0.02050369]
[1744939183197,0.01177884,84898.0,84894.0,0.35177939]
[1744939183599,0.01177911,84896.0,84893.0,0.000843]
[1744939183932,0.23558513,84895.0,84893.0,0.000843]
[1744939186571,0.0464,84894.0,84893.0,0.000843]
[1744939186706,0.16584791,84894.0,84893.0,0.000843]
[1744939186912,0.16760938,84894.0,84893.0,0.000843]
[1744939187109,0.16860938,84894.0,84893.0,0.000843]
[1744939190842,0.00276147,84894.0,84893.0,0.000843]
[1744939191042,0.001,84894.0,84893.0,0.000843]
[1744939191227,0.00176147,84894.0,84893.0,0.000843]
[1744939201396,0.09936147,84894.0,84893.0,0.000843]
[1744939202147,0.23558513,84895.0,84893.0,0.000843]
[1744939202566,0.00176147,84894.0,84893.0,0.000843]
[1744939202968,0.01177884,84898.0,84894.0,0.01177939]
[1744939203280,0.01177897,84897.0,84894.0,0.01177939]
[1744939204915,0.00013464,84902.0,84896.0,0.01177911]
[1744939205103,0.01177884,84898.0,84895.0,0.01177925]
[1744939206103,0.01354044,84897.0,84893.0,0.000843]
[1744939206532,0.01177897,84897.0,84893.0,0.01262253]
[1744939207282,0.24912293,84896.0,84893.0,0.000843]
[1744939207452,0.24736146,84896.0,84893.0,0.000843]
[1744939207651,0.00176147,84895.0,84893.0,0.000843]
[1744939209692,0.01177911,84896.0,84893.0,0.01262253]
[1744939210059,0.00176147,84895.0,84893.0,0.01262253]
[1744939223314,0.00176147,84895.0,84893.0,0.000843]
[1744939223748,0.23734916,84895.0,84893.0,0.000843]
[1744939224331,0.16874791,84894.0,84893.0,0.000843]
[1744939224726,0.17050938,84894.0,84893.0,0.000843]
[1744939232032,0.25422072,84894.0,84893.0,0.000843]
[1744939232237,0.21684791,84894.0,84893.0,0.000843]
[1744939232450,0.21860938,84894.0,84893.0,0.000843]
[1744939233034,0.24063855,84894.0,84893.0,0.000843]
[1744939233169,0.23887708,84894.0,84893.0,0.000843]
[1744939233593,0.23561288,84885.0,84884.0,0.0008422]
[1744939233814,1.00030226,84885.0,84884.0,0.0008422]
[1744939234002,0.99854079,84885.0,84884.0,0.0008422]
[1744939236985,0.86526079,84885.0,84884.0,0.0008422]
[1744939237317,0.99854079,84885.0,84884.0,0.0008422]
[1744939251340,0.99954079,84885.0,84884.0,0.0008422]
[1744939252491,0.86626079,84885.0,84884.0,0.0008422]
[1744939252716,0.99958079,84885.0,84884.0,0.0008422]
[1744939254463,0.01178494,84854.0,84853.0,0.34]
[1744939254900,0.01178494,84854.0,84853.0,0.341]
[1744939255620,0.01178494,84854.0,84853.0,0.001]
[1744939255848,0.01183776,84854.0,84853.0,0.001]
[1744939258124,5.282e-05,84854.0,84853.0,0.16599122]
[1744939258547,5.282e-05,84854.0,84853.0,0.16834818]
[1744939261578,5.282e-05,84854.0,84853.0,0.16599122]
[1744939262533,5.282e-05,84854.0,84853.0,0.001]
[1744939262929,0.1212622,84854.0,84853.0,0.001]
[1744939263131,0.1698622,84854.0,84853.0,0.001]
[1744939265140,0.24750526,84847.0,84842.0,0.01178661]
[1744939265344,0.0117855,84850.0,84845.0,0.01178619]
[1744939265554,0.01178564,84849.0,84845.0,0.01178619]
[1744939265707,0.01178578,84848.0,84845.0,0.03043635]
[1744939266035,0.01178578,84848.0,84845.0,0.01178619]
[1744939267735,0.01178578,84848.0,84844.0,0.01178633]
[1744939268452,0.24750485,84847.0,84843.0,0.35178647]
[1744939269638,0.01178605,84846.0,84843.0,0.35178647]
[1744939271122,0.01178605,84846.0,84843.0,0.37067145]
[1744939274545,0.01178605,84846.0,84843.0,0.03067145]
[1744939274754,0.01178605,84846.0,84843.0,0.01888498]
[1744939275065,0.01178605,84846.0,84842.0,0.01178661]
[1744939275272,0.24750793,84846.0,84842.0,0.01178661]
[1744939275937,0.01178619,84845.0,84842.0,0.01178661]
[1744939276777,0.24749542,84851.0,84844.0,0.01178633]
[1744939276990,0.01178564,84849.0,84846.0,0.34]
[1744939278541,0.24750415,84848.0,84844.0,0.01178633]
[1744939279262,0.24750415,84848.0,84842.0,0.53543266]
[1744939279263,0.01178619,84845.0,84842.0,0.35863536]
[1744939279635,0.01178619,84845.0,84842.0,0.01863536]
[1744939280157,0.01178619,84845.0,84842.0,0.03042197]
[1744939280350,0.01178619,84845.0,84842.0,0.37042197]
[1744939281644,0.24750433,84847.0,84844.0,0.34]
[1744939282480,0.24750433,84847.0,84842.0,0.01863536]
[1744939282481,0.23572952,84843.0,84842.0,0.01863536]
[1744939285377,0.01178605,84846.0,84842.0,0.01863536]
[1744939285574,0.01178578,84848.0,84844.0,0.01178633]
[1744939285799,0.01178619,84845.0,84842.0,0.03042197]
[1744939286121,0.247511,84845.0,84842.0,0.01863536]
[1744939289353,0.01178592,84847.0,84843.0,0.01178647]
[1744939289552,0.01178592,84847.0,84844.0,0.34]
[1744939290515,0.24750723,84846.0,84843.0,0.01178647]
[1744939291000,0.01178619,84845.0,84842.0,0.35863536]
[1744939291121,0.23572674,84844.0,84842.0,0.35863536]
[1744939291579,0.23572674,84844.0,84842.0,0.01863536]
[1744939295016,0.23672674,84844.0,84842.0,0.01863536]
[1744939299588,0.001,84844.0,84842.0,0.01863536]
[1744939307493,0.001,84844.0,84843.0,0.50501066]
[1744939308321,0.001,84844.0,84843.0,0.28834781]
[1744939308497,0.001,84844.0,84842.0,0.01863536]
[1744939309020,0.001,84844.0,84843.0,0.16501066]
[1744939311310,0.0457,84853.0,84850.0,0.0117855]
[1744939311511,0.0467,84853.0,84850.0,0.0117855]
[1744939313114,0.0467,84853.0,84850.0,0.176781]
[1744939318438,0.001,84853.0,84852.0,0.50499316]
[1744939321593,5.282e-05,84854.0,84853.0,0.34]
[1744939321789,0.00105282,84854.0,84853.0,0.34]
[1744939323602,0.00105282,84854.0,84852.0,0.16499316]
[1744939323821,0.00105282,84854.0,84853.0,0.00235676]
[1744939327524,0.00105282,84854.0,84852.0,0.16499316]
[1744939331923,0.00105282,84854.0,84853.0,0.3423566]
[1744939332092,0.00105282,84854.0,84853.0,0.34]
[1744939334572,0.00105282,84854.0,84853.0,0.51118876]
[1744939334955,0.0462,84877.0,84874.0,0.01178217]
[1744939335271,0.0462,84877.0,84874.0,0.01223219]
[1744939335511,0.0462,84877.0,84876.0,0.16494651]
[1744939335696,0.0462,84877.0,84876.0,0.50494651]
[1744939336393,0.046,84879.0,84876.0,0.50494651]
[1744939337148,0.0008436,84880.0,84877.0,0.34]
[1744939337692,0.0008436,84881.0,84878.0,0.17908014]
[1744939338729,0.0008436,84881.0,84878.0,0.17672423]
[1744939342064,0.0008436,84881.0,84880.0,0.50493873]
[1744939355064,0.0008436,84881.0,84879.0,0.34]
[1744939355624,0.0008436,84881.0,84880.0,0.16493873]
[1744939357185,0.0008436,84881.0,84880.0,0.50493873]
[1744939360046,0.0008436,84881.0,84880.0,0.34]
[1744939360245,0.0494436,84881.0,84880.0,0.34]
[1744939374492,0.02635918,84881.0,84880.0,0.34]
[1744939383923,0.0476,84884.0,84881.0,0.51671798]
[1744939385119,0.0476,84884.0,84883.0,0.5049329]
[1744939393727,0.0008436,84887.0,84886.0,0.50492707]
[1744939393949,0.0117787,84899.0,84894.0,0.35177939]
[1744939394401,0.01177884,84898.0,84896.0,0.34]
[1744939394613,0.0117787,84899.0,84896.0,0.34]
[1744939394832,0.01177842,84901.0,84897.0,0.1649057]
[1744939396457,0.01177842,84901.0,84897.0,0.17668467]
[1744939396665,0.01177856,84900.0,84896.0,0.35177911]
[1744939397045,0.01177856,84900.0,84896.0,0.34]
[1744939397248,0.0117787,84899.0,84896.0,0.34]
[1744939400273,0.01177856,84900.0,84896.0,0.34]
[1744939401822,0.048,84901.0,84898.0,0.01177884]
[1744939402024,0.048,84901.0,84899.0,0.16490038]
[1744939408089,0.05977842,84901.0,84897.0,0.1649057]
[1744939409025,0.05977842,84901.0,84897.0,0.17668467]
[1744939409345,0.05977842,84901.0,84897.0,0.1649057]
[1744939409548,0.05977842,84901.0,84897.0,0.1648657]
[1744939409968,0.05977842,84901.0,84897.0,0.17664467]
[1744939411054,0.01177856,84900.0,84897.0,0.17664467]
[1744939411904,0.05977842,84901.0,84897.0,0.17664467]
[1744939412104,0.01177856,84900.0,84897.0,0.17664467]
[1744939412399,0.01177856,84900.0,84897.0,0.1648657]
[1744939414399,0.01177856,84900.0,84896.0,0.01177911]
[1744939414937,0.0117787,84899.0,84895.0,0.17668865]
[1744939415114,0.01177884,84898.0,84894.0,0.36105942]
[1744939415312,0.01177884,84898.0,84894.0,0.37283881]
[1744939415956,0.0117787,84899.0,84895.0,0.17668884]
[1744939416778,0.01177884,84898.0,84894.0,0.37283881]
[1744939418850,0.01177884,84898.0,84894.0,0.16434499]
[1744939419960,0.01177884,84898.0,84894.0,0.03060108]
[1744939427238,0.01177897,84897.0,84894.0,0.37060108]
[1744939428600,0.01177897,84897.0,84894.0,0.35882169]
[1744939429490,0.0117787,84899.0,84894.0,0.35882169]
[1744939429630,0.05977842,84901.0,84897.0,0.01177897]
[1744939429836,0.01177856,84900.0,84896.0,0.17668515]
[1744939430061,0.0117787,84899.0,84896.0,0.17668515]
[1744939430276,0.24735013,84900.0,84896.0,0.16490604]
[1744939430484,0.0117787,84899.0,84896.0,0.16490604]
[1744939430684,0.01177856,84900.0,84896.0,0.17668515]
[1744939430885,0.048,84901.0,84900.0,0.16489988]
[1744939431043,0.01177786,84905.0,84900.0,0.16489988]
[1744939431268,0.0919,84912.0,84910.0,0.50488046]
[1744939431466,0.0469,84912.0,84910.0,0.50488046]
[1744939432172,0.00097851,84911.0,84910.0,0.50488046]
[1744939433576,0.00097851,84911.0,84910.0,0.51381654]
[1744939434946,0.00097851,84911.0,84910.0,0.51481654]
[1744939441746,0.00097851,84911.0,84910.0,0.51381654]
[1744939463693,0.00097851,84911.0,84910.0,0.00893608]
[1744939463895,0.00097851,84911.0,84908.0,0.35177745]
[1744939464970,0.00097851,84911.0,84910.0,0.16488046]
[1744939465793,0.00097851,84911.0,84910.0,0.50488046]
[1744939467790,0.00097851,84911.0,84910.0,0.5135123]
[1744939479637,0.04597851,84911.0,84910.0,0.5135123]
[1744939484233,0.04597851,84911.0,84910.0,0.00863184]
[1744939484752,0.04597851,84911.0,84908.0,0.35177745]
[1744939484903,0.04597851,84911.0,84910.0,0.16488046]
[1744939486151,0.04597851,84911.0,84910.0,0.51375395]
[1744939488878,0.00097851,84911.0,84910.0,0.51375395]
[1744939511095,1e-08,84911.0,84910.0,0.51375395]
[1744939511705,1e-08,84911.0,84910.0,0.51475395]
[1744939514450,1e-08,84911.0,84910.0,0.00987349]
[1744939516093,1e-08,84911.0,84910.0,0.17475395]
[1744939516500,1e-08,84911.0,84910.0,0.51475395]
[1744939529234,1e-08,84911.0,84910.0,0.34987349]
[1744939529443,0.33264075,84911.0,84910.0,0.341]
[1744939530852,0.45208866,84911.0,84910.0,0.001]
[1744939532507,0.33264075,84911.0,84910.0,0.001]
[1744939534826,0.33264075,84911.0,84900.0,0.17298522]
[1744939534827,0.011778,84904.0,84900.0,0.17298522]
[1744939535055,0.00176147,84903.0,84901.0,0.01023221]
[1744939535495,0.00176147,84903.0,84899.0,0.0117787]
[1744939535631,0.00176147,84903.0,84902.0,0.01022912]
[1744939535832,0.00176147,84903.0,84899.0,0.0117787]
[1744939536092,0.00176147,84903.0,84900.0,0.01022912]
[1744939537068,0.00176147,84903.0,84900.0,0.16334883]
[1744939537275,0.00176147,84905.0,84900.0,0.16334883]
[1744939537514,0.01177717,84910.0,84905.0,0.01177786]
[1744939537713,0.01177731,84909.0,84903.0,0.01177814]
[1744939537874,0.01177731,84909.0,84906.0,0.01029818]
[1744939538073,0.01177759,84907.0,84903.0,0.14133776]
[1744939539192,0.01177731,84909.0,84903.0,0.1531159]
[1744939539413,0.34541778,84911.0,84905.0,0.15311215]
[1744939539608,0.34541778,84911.0,84905.0,0.14133429]
[1744939539609,0.01177731,84909.0,84905.0,0.14133429]
[1744939539773,0.01177717,84910.0,84905.0,0.14133429]
[1744939541744,0.01353878,84909.0,84905.0,0.14133429]
[1744939541911,0.01177731,84909.0,84905.0,0.14133429]
[1744939544357,0.01177745,84908.0,84905.0,0.14133429]
[1744939544538,0.01177717,84910.0,84905.0,0.14133429]
[1744939545312,0.01177731,84909.0,84906.0,0.01029066]
[1744939545601,0.01177717,84910.0,84906.0,0.15162263]
[1744939545804,0.01177717,84910.0,84906.0,0.14133197]
[1744939546093,0.01177717,84910.0,84907.0,0.01029066]
[1744939546642,0.01177717,84910.0,84904.0,0.15311327]
[1744939546841,0.01177717,84910.0,84905.0,0.01029066]
[1744939547680,0.01177745,84908.0,84905.0,0.01029066]
[1744939549238,0.01177786,84905.0,84902.0,0.34]
[1744939549397,0.01177786,84905.0,84903.0,0.01027106]
[1744939549599,0.01177786,84905.0,84902.0,0.34]
[1744939549795,0.01177786,84905.0,84903.0,0.01027106]
[1744939549999,0.01177786,84905.0,84902.0,0.34]
[1744939550201,0.01177786,84905.0,84903.0,0.01027106]
[1744939550202,0.23556016,84904.0,84903.0,0.01027106]
[1744939550423,0.01177814,84903.0,84900.0,0.34]
[1744939550630,0.011778,84904.0,84901.0,0.01026487]
[1744939551130,0.24733922,84904.0,84901.0,0.01026487]
[1744939551309,0.05056147,84903.0,84901.0,0.01026487]
[1744939551879,0.0117787,84899.0,84896.0,0.34874268]
[1744939552277,0.0117787,84899.0,84896.0,0.34]
[1744939552420,0.01354017,84899.0,84896.0,0.34]
[1744939553441,0.0117787,84899.0,84896.0,0.34]
[1744939554742,0.01177897,84897.0,84894.0,0.01882169]
[1744939555073,0.01177897,84897.0,84893.0,0.34878476]
[1744939555281,0.01177897,84897.0,84893.0,0.34]
[1744939556395,0.01177939,84894.0,84891.0,0.34]
[1744939556798,0.01177925,84895.0,84891.0,0.48135609]
[1744939557532,0.01177925,84895.0,84891.0,0.4931359]
[1744939557933,0.01177925,84895.0,84891.0,0.51466552]
[1744939558858,0.01177925,84895.0,84891.0,0.5233432]
[1744939560340,0.01177925,84895.0,84892.0,0.01023472]
[1744939560739,0.24736461,84895.0,84892.0,0.01023472]
[1744939561166,0.01177925,84895.0,84892.0,0.01023472]
[1744939561591,0.01277925,84895.0,84892.0,0.01023472]
[1744939561959,0.24836632,84895.0,84892.0,0.01023472]
[1744939562149,0.23559068,84893.0,84892.0,0.01023472]
[1744939563679,0.0488,84894.0,84892.0,0.01023472]
[1744939564003,0.05056147,84894.0,84892.0,0.01023472]
[1744939564179,0.28615178,84894.0,84892.0,0.01023472]
[1744939564329,0.28439031,84894.0,84892.0,0.01023472]
[1744939564528,0.00176147,84893.0,84892.0,0.01023472]
[1744939564980,0.05056147,84894.0,84892.0,0.01023472]
[1744939565391,0.0488,84894.0,84892.0,0.01023472]
[1744939567503,0.0488,84894.0,84893.0,0.34]
[1744939567995,0.0488,84894.0,84893.0,0.35026186]
[1744939568415,0.001,84895.0,84893.0,0.35026186]
[1744939570078,0.001,84895.0,84894.0,0.48135274]
[1744939570275,0.001,84895.0,84894.0,0.49162095]
[1744939575160,0.001,84895.0,84894.0,0.35026821]
[1744939576259,0.001,84895.0,84894.0,0.49162095]
[1744939576757,0.001,84895.0,84894.0,0.35026821]
[1744939578144,0.001,84895.0,84894.0,0.49162095]
[1744939581453,0.011778,84904.0,84900.0,0.34]
[1744939581628,0.0959,84906.0,84903.0,0.15311508]